bitfinex/quotes_BTCUSD_20240817
["timestamp","ask_amount","ask_price","bid_price","bid_amount"]
[1723923988157,0.081125,59619.0,59618.0,1.65347958]
[1723923988639,0.081125,59619.0,59618.0,1.90508058]
[1723923988843,0.081125,59619.0,59618.0,1.92623285]
[1723923992003,0.081125,59619.0,59618.0,1.92623677]
[1723923992215,0.081125,59619.0,59618.0,1.82606605]
[1723923992419,0.081125,59619.0,59618.0,1.66816505]
[1723923992617,0.081125,59619.0,59618.0,1.76837763]
[1723923993058,0.081125,59619.0,59618.0,2.01997863]
[1723923993221,0.081125,59619.0,59618.0,1.91976605]
[1723923995992,0.081125,59619.0,59618.0,1.89860986]
[1723923996192,0.081125,59619.0,59618.0,1.949412]
[1723923996563,0.081125,59619.0,59618.0,1.94942041]
[1723923997202,0.081125,59619.0,59618.0,2.07463381]
[1723923997403,0.081125,59619.0,59618.0,1.91977467]
[1723923997706,0.081125,59619.0,59618.0,1.94941768]
[1723923997911,0.081125,59619.0,59618.0,2.02004199]
[1723923998199,0.001025,59619.0,59618.0,2.34391776]
[1723923998400,0.001025,59619.0,59618.0,2.18513655]
[1723923998609,0.001025,59619.0,59618.0,2.12652589]
[1723923998817,0.00061254,59621.0,59620.0,1.137168]
[1723923999025,0.00061254,59621.0,59620.0,1.92248437]
[1723923999237,0.00061254,59621.0,59620.0,2.17407737]
[1723924000202,0.00061254,59621.0,59620.0,2.11547757]
[1723924001108,0.00061254,59621.0,59620.0,2.12947757]
[1723924001570,0.00061254,59621.0,59620.0,2.14347757]
[1723924002574,0.00061254,59621.0,59620.0,2.14344251]
[1723924003029,0.00143754,59621.0,59620.0,2.14344251]
[1723924005417,0.00143754,59621.0,59620.0,2.14344345]
[1723924006975,0.00143754,59621.0,59620.0,2.13944345]
[1723924007533,0.00143754,59621.0,59620.0,2.14344345]
[1723924008378,0.00143754,59621.0,59620.0,2.10458945]
[1723924008585,0.00143754,59621.0,59620.0,2.14344068]
[1723924009746,0.00143754,59621.0,59620.0,2.28294068]
[1723924010562,0.00143754,59621.0,59620.0,2.19944068]
[1723924010907,0.00143754,59621.0,59620.0,2.28094068]
[1723924011105,0.00143754,59621.0,59620.0,2.28294068]
[1723924011783,0.00143754,59621.0,59620.0,2.28294066]
[1723924012208,0.00143754,59621.0,59620.0,2.2829401]
[1723924012579,0.00143754,59621.0,59620.0,2.34154157]
[1723924016245,0.00143754,59621.0,59620.0,2.19803412]
[1723924016462,0.00143754,59621.0,59620.0,2.29373412]
[1723924016668,0.00143754,59621.0,59620.0,2.23513265]
[1723924016872,0.00143754,59621.0,59620.0,2.29373412]
[1723924017094,0.00143754,59621.0,59620.0,2.23513265]
[1723924017309,0.00143754,59621.0,59620.0,2.29573412]
[1723924018399,0.00143754,59621.0,59620.0,2.29173412]
[1723924018608,0.00143754,59621.0,59620.0,2.29373412]
[1723924020497,0.00143754,59621.0,59620.0,2.29573412]
[1723924020765,0.00143754,59621.0,59620.0,2.29573243]
[1723924022250,0.00143754,59621.0,59620.0,2.37523243]
[1723924022491,1e-08,59621.0,59620.0,2.4670161]
[1723924022695,1e-08,59621.0,59620.0,2.31663096]
[1723924022900,1e-08,59621.0,59620.0,2.25662814]
[1723924023110,1e-08,59621.0,59620.0,2.31662654]
[1723924023542,1e-08,59621.0,59620.0,2.30262654]
[1723924023991,1e-08,59621.0,59620.0,2.31660452]
[1723924024679,1e-08,59621.0,59620.0,2.30260452]
[1723924024910,1e-08,59621.0,59620.0,2.31660452]
[1723924027251,1e-08,59621.0,59620.0,2.31660668]
[1723924028574,1e-08,59621.0,59620.0,2.31660679]
[1723924029804,1e-08,59621.0,59620.0,2.83753375]
[1723924031011,1e-08,59621.0,59620.0,2.7986963]
[1723924031282,4e-08,59627.0,59626.0,1.388624]
[1723924031558,4e-08,59627.0,59626.0,2.74530552]
[1723924031813,4e-08,59627.0,59626.0,3.12818106]
[1723924032044,4e-08,59627.0,59626.0,3.17453759]
[1723924032587,0.00186979,59636.0,59632.0,0.005]
[1723924032590,0.06984551,59633.0,59632.0,0.164421]
[1723924032865,0.00186979,59636.0,59633.0,1.515809]
[1723924033110,0.00186979,59636.0,59633.0,2.28916276]
[1723924033356,0.00186979,59636.0,59635.0,1.170535]
[1723924033628,0.00186979,59636.0,59635.0,2.4268184]
[1723924033849,0.00186979,59636.0,59635.0,2.27668876]
[1723924034869,0.00186979,59636.0,59635.0,2.29068876]
[1723924035091,0.00186979,59636.0,59635.0,2.29066022]
[1723924035359,0.00103719,59643.0,59642.0,0.6654]
[1723924035618,0.00103719,59643.0,59642.0,0.53515931]
[1723924035856,0.00103719,59643.0,59642.0,0.29370931]
[1723924036093,0.14533719,59643.0,59642.0,0.38640931]
[1723924036329,0.14533719,59643.0,59642.0,0.28640931]
[1723924036595,0.14533719,59643.0,59642.0,0.27925454]
[1723924036858,0.14533719,59643.0,59642.0,0.19955454]
[1723924037087,0.14533719,59643.0,59642.0,0.17155454]
[1723924037565,0.14533719,59643.0,59642.0,0.014]
[1723924037828,0.77407719,59643.0,59642.0,0.014]
[1723924038060,0.77407719,59643.0,59631.0,0.04937841]
[1723924038061,0.270071,59632.0,59631.0,0.04937841]
[1723924038295,0.521613,59632.0,59631.0,0.22093295]
[1723924038571,0.521613,59632.0,59631.0,0.17155454]
[1723924038849,0.251532,59635.0,59620.0,0.04911539]
[1723924038850,0.0655,59630.0,59620.0,0.04911539]
[1723924039120,0.0937,59634.0,59620.0,0.04911539]
[1723924039121,0.125786,59625.0,59621.0,0.1927238]
[1723924039368,0.0788,59624.0,59622.0,0.02116926]
[1723924039602,0.0788,59624.0,59623.0,0.17155454]
[1723924040919,0.0788,59624.0,59623.0,0.29734454]
[1723924042180,0.0788,59624.0,59623.0,0.17155454]
[1723924042435,0.0788,59624.0,59623.0,0.18555454]
[1723924042696,0.1443,59624.0,59623.0,0.19955454]
[1723924043560,0.1443,59624.0,59623.0,0.32534454]
[1723924049236,0.1443,59624.0,59623.0,0.57692454]
[1723924051755,0.1443,59624.0,59623.0,0.32534454]
[1723924052006,0.1443,59624.0,59623.0,0.028]
[1723924052254,0.000825,59636.0,59620.0,0.0009075]
[1723924052255,0.125794,59621.0,59620.0,0.0009075]
[1723924052502,0.271894,59621.0,59620.0,0.0009075]
[1723924052758,0.523483,59621.0,59620.0,0.0009075]
[1723924053613,0.775072,59621.0,59620.0,0.0009075]
[1723924053828,0.523483,59621.0,59620.0,0.0009075]
[1723924055768,0.523483,59621.0,59620.0,0.0019075]
[1723924060230,0.775072,59621.0,59620.0,0.0019075]
[1723924062162,1.026661,59621.0,59620.0,0.0019075]
[1723924062370,1.010161,59621.0,59620.0,0.0019075]
[1723924066012,1.103761,59621.0,59620.0,0.0019075]
[1723924072394,1.104761,59621.0,59620.0,0.0019075]
[1723924072612,1.106761,59621.0,59620.0,0.0019075]
[1723924073756,1.103761,59621.0,59620.0,0.0019075]
[1723924073968,1.103761,59621.0,59620.0,0.0009075]
[1723924074185,1.103761,59621.0,59620.0,0.0029075]
[1723924074824,1.104761,59621.0,59620.0,0.0029075]
[1723924075034,1.35835,59621.0,59620.0,0.0029075]
[1723924076699,1.359175,59621.0,59620.0,0.0029075]
[1723924077985,1.356175,59621.0,59620.0,0.0029075]
[1723924078189,1.36604207,59621.0,59620.0,0.0029075]
[1723924078655,1.356175,59621.0,59620.0,0.0029075]
[1723924081805,1.357175,59621.0,59620.0,0.0029075]
[1723924082255,1.356175,59621.0,59620.0,0.0029075]
[1723924095868,1.246881,59621.0,59620.0,0.0029075]
[1723924096077,1.372675,59621.0,59620.0,0.0029075]
[1723924096874,1.373675,59621.0,59620.0,0.0029075]
[1723924097275,1.375675,59621.0,59620.0,0.0029075]
[1723924097485,1.45090058,59621.0,59620.0,0.0029075]
[1723924098094,1.44790058,59621.0,59620.0,0.0029075]
[1723924098502,1.45082247,59621.0,59620.0,0.0029075]
[1723924098717,1.45100175,59621.0,59620.0,0.0029075]
[1723924100006,1.50097286,59621.0,59620.0,0.0029075]
[1723924100429,1.50197286,59621.0,59620.0,0.0029075]
[1723924100631,1.50397286,59621.0,59620.0,0.0029075]
[1723924101413,1.37859689,59621.0,59620.0,0.0029075]
[1723924102638,1.28199689,59621.0,59620.0,0.0029075]
[1723924102847,1.37559689,59621.0,59620.0,0.0029075]
[1723924103045,1.50132028,59621.0,59620.0,0.0029075]
[1723924103452,1.37559689,59621.0,59620.0,0.0029075]
[1723924105333,1.37659689,59621.0,59620.0,0.0029075]
[1723924105755,1.37559689,59621.0,59620.0,0.0029075]
[1723924106167,1.40191983,59621.0,59620.0,0.0029075]
[1723924107939,1.30831983,59621.0,59620.0,0.0029075]
[1723924108134,1.40191983,59621.0,59620.0,0.0029075]
[1723924108510,1.52777281,59621.0,59620.0,0.0029075]
[1723924109336,1.40191983,59621.0,59620.0,0.0029075]
[1723924115503,1.39899794,59621.0,59620.0,0.0029075]
[1723924115702,1.39999794,59621.0,59620.0,0.0029075]
[1723924116900,1.39899794,59621.0,59620.0,0.0029075]
[1723924117122,1.39999794,59621.0,59620.0,0.0029075]
[1723924119792,1.40199794,59621.0,59620.0,0.0029075]
[1723924120423,1.39899794,59621.0,59620.0,0.0029075]
[1723924138806,1.71296357,59621.0,59620.0,0.0029075]
[1723924139020,1.56471867,59621.0,59620.0,0.0029075]
[1723924139249,1.81730767,59621.0,59620.0,0.0029075]
[1723924139453,1.81730767,59621.0,59616.0,0.0009075]
[1723924139454,0.0989,59617.0,59616.0,0.0009075]
[1723924139653,0.29902222,59617.0,59616.0,0.0009075]
[1723924139883,1.53124922,59617.0,59616.0,0.0009075]
[1723924140314,1.78285522,59617.0,59616.0,0.0009075]
[1723924140734,1.78285522,59617.0,59607.0,0.0009075]
[1723924140735,1.304798,59608.0,59607.0,0.0009075]
[1723924140949,1.5290778,59608.0,59607.0,0.0009075]
[1723924141151,1.5324778,59608.0,59607.0,0.0009075]
[1723924141351,1.495398,59608.0,59607.0,0.0009075]
[1723924141563,1.64650201,59608.0,59607.0,0.0009075]
[1723924142444,1.495398,59608.0,59607.0,0.0009075]
[1723924142646,1.504398,59608.0,59607.0,0.0009075]
[1723924143478,1.512398,59608.0,59607.0,0.0019075]
[1723924143925,1.59958268,59608.0,59607.0,0.0019075]
[1723924147650,1.60947954,59608.0,59607.0,0.0019075]
[1723924148368,1.73518225,59608.0,59607.0,0.0019075]
[1723924149435,1.64158225,59608.0,59607.0,0.0019075]
[1723924149636,1.68487862,59608.0,59607.0,0.0019075]
[1723924150033,1.60947954,59608.0,59607.0,0.0019075]
[1723924150249,1.027754,59608.0,59607.0,0.0019075]
[1723924150454,0.76971,59608.0,59607.0,0.1444075]
[1723924151143,1.021354,59608.0,59607.0,0.1444075]
[1723924154626,1.021354,59608.0,59607.0,0.0671075]
[1723924156390,1.13112931,59608.0,59607.0,0.0019075]
[1723924156979,1.021354,59608.0,59607.0,0.0019075]
[1723924159376,0.76971,59608.0,59607.0,0.0019075]
[1723924160068,1.021354,59608.0,59607.0,0.0019075]
[1723924166444,1.04768005,59608.0,59607.0,0.0019075]
[1723924179442,1.04768005,59608.0,59607.0,0.1404075]
[1723924179443,0.04332605,59608.0,59607.0,0.1404075]
[1723924179882,0.142822,59608.0,59607.0,0.1404075]
[1723924180360,0.424466,59608.0,59607.0,0.1404075]
[1723924180810,0.416466,59608.0,59607.0,0.1394075]
[1723924181272,0.417466,59608.0,59607.0,0.1394075]
[1723924182442,0.408466,59608.0,59607.0,0.1394075]
[1723924182654,0.160822,59608.0,59607.0,0.1394075]
[1723924187145,0.412466,59608.0,59607.0,0.1394075]
[1723924187397,0.412466,59608.0,59607.0,0.0640075]
[1723924188265,0.412466,59608.0,59607.0,0.0009075]
[1723924189619,0.8148803,59608.0,59607.0,0.0009075]
[1723924189840,1.1271243,59608.0,59607.0,0.0009075]
[1723924190040,1.47938777,59608.0,59607.0,0.0009075]
[1723924190245,1.50454264,59608.0,59607.0,0.0009075]
[1723924190656,1.50354264,59608.0,59607.0,0.0009075]
[1723924191321,1.51354264,59608.0,59607.0,0.0009075]
[1723924192280,1.50954264,59608.0,59607.0,0.0009075]
[1723924192491,1.51554264,59608.0,59607.0,0.0009075]
[1723924193526,1.3897683,59608.0,59607.0,0.0009075]
[1723924194887,1.51858326,59608.0,59607.0,0.0009075]
[1723924195108,1.51658326,59608.0,59607.0,0.0009075]
[1723924195433,1.51558326,59608.0,59607.0,0.0009075]
[1723924195637,1.51658326,59608.0,59607.0,0.0009075]
[1723924195882,1.51858326,59608.0,59607.0,0.0009075]
[1723924196426,1.3927683,59608.0,59607.0,0.0009075]
[1723924196785,1.4927683,59608.0,59607.0,0.0009075]
[1723924197204,1.4897683,59608.0,59607.0,0.0009075]
[1723924198015,1.413998,59608.0,59607.0,0.0009075]
[1723924198215,1.53981038,59608.0,59607.0,0.0009075]
[1723924198712,1.413998,59608.0,59607.0,0.0009075]
[1723924198902,1.51464438,59608.0,59607.0,0.0009075]
[1723924199328,1.162354,59608.0,59607.0,0.0009075]
[1723924199700,1.23783659,59608.0,59607.0,0.0009075]
[1723924199871,1.162354,59608.0,59607.0,0.0009075]
[1723924200248,1.413998,59608.0,59607.0,0.0009075]
[1723924200653,1.48947786,59608.0,59607.0,0.0009075]
[1723924202879,1.58307786,59608.0,59607.0,0.0009075]
[1723924205625,1.60823781,59608.0,59607.0,0.0009075]
[1723924205821,1.507598,59608.0,59607.0,0.0009075]
[1723924207239,1.53439269,59608.0,59607.0,0.0009075]
[1723924207772,1.66119246,59608.0,59607.0,0.0009075]
[1723924207971,1.66319246,59608.0,59607.0,0.0009075]
[1723924209514,1.53739269,59608.0,59607.0,0.0009075]
[1723924209711,1.53439269,59608.0,59607.0,0.0009075]
[1723924210041,1.507598,59608.0,59607.0,0.0009075]
[1723924210938,1.60823954,59608.0,59607.0,0.0009075]
[1723924212936,1.26299554,59608.0,59607.0,0.0009075]
[1723924213145,1.255954,59608.0,59607.0,0.0009075]
[1723924213342,1.33143302,59608.0,59607.0,0.0009075]
[1723924215367,1.255954,59608.0,59607.0,0.0009075]
[1723924219999,1.33143276,59608.0,59607.0,0.0009075]
[1723924222656,1.33143201,59608.0,59607.0,0.0009075]
[1723924225245,1.17723201,59608.0,59607.0,0.0009075]
[1723924225490,1.195354,59608.0,59607.0,0.0009075]
[1723924225851,0.423466,59608.0,59607.0,0.0009075]
[1723924226075,0.423466,59608.0,59607.0,0.1435075]
[1723924227049,0.413466,59608.0,59607.0,0.1435075]
[1723924227252,0.411466,59608.0,59607.0,0.1435075]
[1723924227700,0.412466,59608.0,59607.0,0.1435075]
[1723924235802,0.035,59608.0,59607.0,0.1435075]
[1723924236007,0.035,59608.0,59607.0,0.2693315]
[1723924236910,0.034,59608.0,59607.0,0.1435075]
[1723924237352,0.03,59608.0,59607.0,0.1435075]
[1723924238919,0.03,59608.0,59607.0,0.2693315]
[1723924244534,0.251625,59613.0,59609.0,0.0651]
[1723924244535,0.251628,59612.0,59609.0,0.0651]
[1723924244781,0.125815,59611.0,59609.0,0.0651]
[1723924245195,0.65911,59608.0,59607.0,0.0009075]
[1723924245407,0.80601,59608.0,59607.0,0.0009075]
[1723924246990,1.057654,59608.0,59607.0,0.0009075]
[1723924247407,1.310298,59608.0,59607.0,0.0009075]
[1723924247560,1.58245639,59608.0,59607.0,0.0009075]
[1723924247792,1.48485254,59608.0,59607.0,0.0009075]
[1723924247989,1.60960735,59608.0,59607.0,0.0009075]
[1723924248396,1.62060735,59608.0,59607.0,0.0009075]
[1723924248826,1.49085254,59608.0,59607.0,0.0009075]
[1723924249197,1.68859165,59608.0,59607.0,0.0009075]
[1723924249980,1.68559165,59608.0,59607.0,0.0009075]
[1723924250200,1.63982009,59608.0,59607.0,0.0009075]
[1723924250404,1.51403711,59608.0,59607.0,0.0009075]
[1723924251434,1.6146554,59608.0,59607.0,0.0009075]
[1723924252510,1.42691629,59608.0,59607.0,0.0009075]
[1723924254008,1.61238108,59608.0,59607.0,0.0009075]
[1723924256300,1.42691629,59608.0,59607.0,0.0009075]
[1723924256584,1.6130394,59608.0,59607.0,0.0009075]
[1723924257563,1.3613954,59608.0,59607.0,0.0009075]
[1723924257770,1.26887229,59608.0,59607.0,0.0009075]
[1723924258775,1.26887361,59608.0,59607.0,0.0009075]
[1723924260174,1.168254,59608.0,59607.0,0.0009075]
[1723924260410,0.047,59608.0,59607.0,0.4434795]
[1723924260608,0.047,59608.0,59607.0,0.5199795]
[1723924260609,0.017,59608.0,59607.0,0.5199795]
[1723924260815,0.017,59608.0,59607.0,0.2683315]
[1723924261226,0.01,59608.0,59607.0,0.2683315]
[1723924261769,0.125815,59611.0,59608.0,0.125821]
[1723924261971,0.03,59610.0,59608.0,0.125821]
[1723924262351,0.03,59610.0,59607.0,0.2683315]
[1723924263451,0.033,59610.0,59607.0,0.2683315]
[1723924266280,0.033,59610.0,59608.0,0.125821]
[1723924266715,0.033,59610.0,59607.0,0.2683305]
[1723924267311,0.03,59610.0,59607.0,0.2683305]
[1723924268680,0.033,59610.0,59607.0,0.2683305]
[1723924268867,0.03,59610.0,59607.0,0.2683305]
[1723924269395,0.033,59610.0,59607.0,0.2683305]
[1723924272279,0.033,59610.0,59608.0,0.125821]
[1723924272416,0.158818,59610.0,59607.0,0.2683315]
[1723924273393,0.033,59610.0,59608.0,0.125821]
[1723924273804,0.033,59610.0,59607.0,0.0774075]
[1723924273976,0.033,59610.0,59609.0,0.1379]
[1723924274906,0.158817,59610.0,59609.0,0.1379]
[1723924275364,0.158817,59610.0,59607.0,0.0009075]
[1723924275365,0.880754,59608.0,59607.0,0.0009075]
[1723924275615,0.958054,59608.0,59607.0,0.0009075]
[1723924275820,1.022554,59608.0,59607.0,0.0009075]
[1723924276432,1.277198,59608.0,59607.0,0.0009075]
[1723924276568,1.37959701,59608.0,59607.0,0.0009075]
[1723924276770,1.40474712,59608.0,59607.0,0.0009075]
[1723924276984,1.41767141,59608.0,59607.0,0.0009075]
[1723924277213,1.41174712,59608.0,59607.0,0.0009075]
[1723924277412,1.274198,59608.0,59607.0,0.0009075]
[1723924277614,1.281198,59608.0,59607.0,0.0009075]
[1723924277959,1.515198,59608.0,59607.0,0.0009075]
[1723924279012,1.525198,59608.0,59607.0,0.0009075]
[1723924280666,1.60064182,59608.0,59607.0,0.0009075]
[1723924282736,1.525198,59608.0,59607.0,0.0009075]
[1723924285904,1.60063676,59608.0,59607.0,0.0009075]
[1723924286314,1.291198,59608.0,59607.0,0.0009075]
[1723924286513,1.039554,59608.0,59607.0,0.0009075]
[1723924290582,1.11500233,59608.0,59607.0,0.0009075]
[1723924291184,1.14132971,59608.0,59607.0,0.0009075]
[1723924293606,1.07682971,59608.0,59607.0,0.0009075]
[1723924293825,0.975054,59608.0,59607.0,0.0009075]
[1723924299906,1.068654,59608.0,59607.0,0.0009075]
[1723924300409,0.64611,59608.0,59607.0,0.0009075]
[1723924300613,0.64611,59608.0,59607.0,0.1459075]
[1723924300821,0.64611,59608.0,59607.0,0.0643075]
[1723924301482,0.394466,59608.0,59607.0,0.0643075]
[1723924301696,0.387466,59608.0,59607.0,0.0643075]
[1723924302113,0.394466,59608.0,59607.0,0.0643075]
[1723924302287,0.384466,59608.0,59607.0,0.0643075]
[1723924302503,0.382466,59608.0,59607.0,0.0643075]
[1723924302846,0.383466,59608.0,59607.0,0.0643075]
[1723924303207,0.387466,59608.0,59607.0,0.0643075]
[1723924306047,0.63911,59608.0,59607.0,0.0643075]
[1723924306250,0.63911,59608.0,59607.0,0.0009075]
[1723924317065,0.387466,59608.0,59607.0,0.0009075]
[1723924317276,0.387466,59608.0,59607.0,0.1427075]
[1723924317489,0.135822,59608.0,59607.0,0.1427075]
[1723924318112,0.387466,59608.0,59607.0,0.1427075]
[1723924318324,0.386466,59608.0,59607.0,0.1427075]
[1723924319388,0.134822,59608.0,59607.0,0.1427075]
[1723924319600,0.009,59608.0,59607.0,0.1427075]
[1723924319805,0.009,59608.0,59607.0,0.2685315]
[1723924320008,0.03,59610.0,59607.0,0.2685315]
[1723924320231,0.03,59610.0,59607.0,0.1427075]
[1723924320433,0.001,59608.0,59607.0,0.5201795]
[1723924321250,0.03,59610.0,59607.0,0.5201795]
[1723924321454,0.03,59610.0,59608.0,0.125821]
[1723924321667,0.033,59610.0,59608.0,0.125821]
[1723924321872,0.03,59610.0,59608.0,0.125821]
[1723924323143,0.03,59610.0,59607.0,0.2685305]
[1723924323350,0.001,59608.0,59607.0,0.2685305]
[1723924323554,0.03,59610.0,59607.0,0.2685305]
[1723924323970,0.033,59610.0,59607.0,0.2685305]
[1723924324172,0.03,59610.0,59607.0,0.2685305]
[1723924324382,0.033,59610.0,59607.0,0.2685305]
[1723924324594,0.158817,59610.0,59607.0,0.1923305]
[1723924324796,0.158817,59610.0,59607.0,0.0665075]
[1723924325409,0.158817,59610.0,59607.0,0.1923305]
[1723924326022,0.033,59610.0,59607.0,0.1923305]
[1723924326646,0.158818,59610.0,59607.0,0.0665075]
[1723924326851,0.158818,59610.0,59607.0,0.1923315]
[1723924330158,0.033,59610.0,59608.0,0.125821]
[1723924330366,0.033,59610.0,59608.0,0.0806]
[1723924331212,0.155818,59610.0,59608.0,0.0806]
[1723924331619,0.158818,59610.0,59608.0,0.0806]
[1723924334769,0.125819,59609.0,59607.0,0.0665075]
[1723924334990,0.125819,59609.0,59607.0,0.0009075]
[1723924336918,0.03,59610.0,59609.0,0.267219]
[1723924337124,0.03,59610.0,59609.0,0.518858]
[1723924337320,0.000825,59616.0,59611.0,0.125813]
[1723924337524,0.125807,59615.0,59612.0,0.125812]
[1723924337751,0.000825,59616.0,59612.0,0.125812]
[1723924337752,0.000825,59616.0,59613.0,0.12581]
[1723924338083,0.000825,59616.0,59615.0,0.125807]
[1723924338299,0.000825,59616.0,59613.0,0.1414]
[1723924338509,0.000825,59616.0,59614.0,0.125808]
[1723924339678,0.001825,59616.0,59614.0,0.125808]
[1723924340102,0.000825,59616.0,59614.0,0.125808]
[1723924340484,0.001825,59616.0,59614.0,0.125808]
[1723924340662,0.005825,59616.0,59614.0,0.125808]
[1723924341184,0.005825,59616.0,59613.0,0.267211]
[1723924341385,0.12763,59616.0,59613.0,0.267211]
[1723924342460,0.12663,59616.0,59613.0,0.267211]
[1723924342875,0.12763,59616.0,59613.0,0.267211]
[1723924343582,0.0819,59615.0,59610.0,0.0618]
[1723924343819,0.125811,59613.0,59610.0,0.187617]
[1723924344015,0.125811,59613.0,59610.0,0.125817]
[1723924347018,0.125809,59614.0,59610.0,0.125817]
[1723924347171,0.001,59613.0,59610.0,0.125817]
[1723924348172,0.126811,59613.0,59610.0,0.125817]
[1723924350592,0.126811,59613.0,59607.0,0.0009075]
[1723924350593,0.125821,59609.0,59607.0,0.0009075]
[1723924350820,0.207721,59609.0,59607.0,0.0009075]
[1723924352928,0.208721,59609.0,59607.0,0.0009075]
[1723924353339,0.207721,59609.0,59607.0,0.0009075]
[1723924353717,0.208721,59609.0,59607.0,0.0009075]
[1723924355309,0.377466,59608.0,59607.0,0.0009075]
[1723924355526,0.77131,59608.0,59607.0,0.0009075]
[1723924355995,1.022954,59608.0,59607.0,0.0009075]
[1723924356615,1.023954,59608.0,59607.0,0.0009075]
[1723924357834,1.022954,59608.0,59607.0,0.0009075]
[1723924358081,1.027954,59608.0,59607.0,0.0009075]
[1723924358506,1.022954,59608.0,59607.0,0.0009075]
[1723924358933,1.028954,59608.0,59607.0,0.0009075]
[1723924359356,0.71801,59608.0,59607.0,0.0009075]
[1723924368265,0.81161,59608.0,59607.0,0.0009075]
[1723924368476,0.87471,59608.0,59607.0,0.0009075]
[1723924380934,1.24954178,59608.0,59607.0,0.0009075]
[1723924381138,1.20186651,59608.0,59607.0,0.0009075]
[1723924381344,1.45351051,59608.0,59607.0,0.0009075]
[1723924382200,1.44751051,59608.0,59607.0,0.0009075]
[1723924382337,1.20686651,59608.0,59607.0,0.0009075]
[1723924382739,1.131354,59608.0,59607.0,0.0009075]
[1723924382996,1.20686651,59608.0,59607.0,0.0009075]
[1723924383228,1.131354,59608.0,59607.0,0.0009075]
[1723924383521,1.130354,59608.0,59607.0,0.0009075]
[1723924384156,1.132354,59608.0,59607.0,0.0009075]
[1723924384731,1.130354,59608.0,59607.0,0.0009075]
[1723924384929,1.073254,59608.0,59607.0,0.0009075]
[1723924390034,0.82161,59608.0,59607.0,0.0009075]
[1723924392317,0.64611,59608.0,59607.0,0.0009075]
[1723924392504,0.394466,59608.0,59607.0,0.0629075]
[1723924393479,0.64611,59608.0,59607.0,0.0629075]
[1723924396829,0.017,59608.0,59607.0,0.0629075]
[1723924397026,0.017,59608.0,59607.0,0.1887315]
[1723924397240,0.017,59608.0,59607.0,0.0629075]
[1723924397668,0.011,59608.0,59607.0,0.0629075]
[1723924397874,0.012,59608.0,59607.0,0.0629075]
[1723924398699,0.001,59608.0,59607.0,0.0629075]
[1723924420904,0.001,59608.0,59607.0,0.0009075]
[1723924421912,0.126822,59608.0,59607.0,0.0009075]
[1723924424185,0.001,59608.0,59607.0,0.0009075]
[1723924424307,0.001,59608.0,59607.0,0.1267315]
[1723924424511,0.001,59608.0,59607.0,0.71364275]
[1723924427287,0.001,59608.0,59607.0,0.6924275]
[1723924427468,0.001,59608.0,59607.0,0.71364195]
[1723924429106,0.001,59608.0,59607.0,0.71364227]
[1723924431402,0.001,59608.0,59607.0,0.7136412]
[1723924435580,0.001,59608.0,59607.0,0.71364364]
[1723924435954,0.001,59608.0,59607.0,0.6924275]
[1723924436141,0.001,59608.0,59607.0,0.71364355]
[1723924439016,0.001,59608.0,59607.0,0.65124355]
[1723924439856,0.001,59608.0,59607.0,0.6300275]
[1723924442679,0.001,59608.0,59607.0,0.0009075]
[1723924442881,0.001,59608.0,59607.0,0.1267315]
[1723924446606,0.001,59608.0,59607.0,0.0009075]
[1723924446607,0.274622,59608.0,59607.0,0.0009075]
[1723924446811,0.77791,59608.0,59607.0,0.0009075]
[1723924447013,1.119705,59608.0,59607.0,0.0009075]
[1723924447633,1.028554,59608.0,59607.0,0.0009075]
[1723924448808,1.028554,59608.0,59607.0,0.0019075]
[1723924449051,1.029554,59608.0,59607.0,0.0019075]
[1723924449260,1.039554,59608.0,59607.0,0.0019075]
[1723924449468,1.028554,59608.0,59607.0,0.0009075]
[1723924449612,1.034554,59608.0,59607.0,0.0009075]
[1723924449812,1.045554,59608.0,59607.0,0.0009075]
[1723924454442,0.79391,59608.0,59607.0,0.0009075]
[1723924455949,0.542266,59608.0,59607.0,0.0009075]
[1723924458341,0.536266,59608.0,59607.0,0.0009075]
[1723924459083,0.525266,59608.0,59607.0,0.0009075]
[1723924459287,0.77691,59608.0,59607.0,0.0009075]
[1723924459489,0.78191,59608.0,59607.0,0.0009075]
[1723924462008,0.78491,59608.0,59607.0,0.0009075]
[1723924462421,0.77691,59608.0,59607.0,0.0009075]
[1723924462621,0.78391,59608.0,59607.0,0.0009075]
[1723924462823,0.78691,59608.0,59607.0,0.0009075]
[1723924480543,1.038554,59608.0,59607.0,0.0009075]
[1723924481176,1.290198,59608.0,59607.0,0.0009075]
[1723924481377,1.6345278,59608.0,59607.0,0.0009075]
[1723924481587,1.6315278,59608.0,59607.0,0.0009075]
[1723924481802,1.6245278,59608.0,59607.0,0.0009075]
[1723924481949,1.6275278,59608.0,59607.0,0.0009075]
[1723924482156,1.6355278,59608.0,59607.0,0.0009075]
[1723924482361,1.6305278,59608.0,59607.0,0.0009075]
[1723924482771,1.6435278,59608.0,59607.0,0.0009075]
[1723924482977,1.6315278,59608.0,59607.0,0.0009075]
[1723924483151,1.6335278,59608.0,59607.0,0.0009075]
[1723924483355,1.6475278,59608.0,59607.0,0.0009075]
[1723924483552,1.6415278,59608.0,59607.0,0.0009075]
[1723924484079,1.6525278,59608.0,59607.0,0.0009075]
[1723924484468,1.397198,59608.0,59607.0,0.0009075]
[1723924484671,1.394198,59608.0,59607.0,0.0009075]
[1723924484844,1.64082449,59608.0,59607.0,0.0009075]
[1723924485063,1.65482449,59608.0,59607.0,0.0009075]
[1723924493063,1.64776005,59608.0,59607.0,0.0009075]
[1723924494144,1.64876005,59608.0,59607.0,0.0009075]
[1723924494347,1.65076005,59608.0,59607.0,0.0009075]
[1723924495187,1.64776005,59608.0,59607.0,0.0009075]
[1723924497046,1.513798,59608.0,59607.0,0.0009075]
[1723924497562,1.73770877,59608.0,59607.0,0.0009075]
[1723924499962,1.90926331,59608.0,59607.0,0.0009075]
[1723924500167,1.91026331,59608.0,59607.0,0.0009075]
[1723924500347,2.11416331,59608.0,59607.0,0.0009075]
[1723924500766,1.93860877,59608.0,59607.0,0.0009075]
[1723924500969,2.19025277,59608.0,59607.0,0.0009075]
[1723924501179,2.19425277,59608.0,59607.0,0.0009075]
[1723924501383,2.16625277,59608.0,59607.0,0.0009075]
[1723924501658,2.15425277,59608.0,59607.0,0.0009075]
[1723924501866,2.16825277,59608.0,59607.0,0.0009075]
[1723924502095,2.15425277,59608.0,59607.0,0.0009075]